{"text_format":"3","workbook":"xlsx","n_sheets":4,"sheets":["Organisasjonshistorie","Kartlegging","Allment arkivskjema","Rapport"],"not_rendered":{"images":1,"comments":2},"read":"whole","date_system":"1900"}

{"sheet":"Organisasjonshistorie","index":0,"n_rows":11,"n_cols":8,"rows_kept":11,"merged":[[0,0,1,2],[4,0,4,2],[4,3,4,4],[4,6,4,7]]}
[{"$nulls":3},"Kartleggingsskjema, sektorprosjekt, universiteter og vitenskaplige høgskoler"]
[{"$nulls":3},"Bevaring og kassasjonskartlegging"]
[{"$nulls":3},2013]
["Institusjon:",null,null,"Adm. Enhet",null,"Dato:","Vurderer:"]
["Universitetet i Oslo",null,null,"UV - ILS",null,{"$f":"TODAY()","v":"2014-01-22"},"Petter Olav Haraldsvik"]
["Arkivskapende enheter:"]
["Nivå","Navn","Opprettet:","Nedlagt:","Forløpere:","Etterkommer:","Funksjon:","Kommentar"]
["X","Pedagogisk seminar (PSO)",1907,1987,null,"SLS","A - U - F - Fo","Pedagogisk høgskole"]
["X","Senter for lærerutdanning og skoletjeneste (SLS)",1988,1995,"PSO","ILS","A - U - F - Fo","Selvstendig senter underlagt UiO"]
["I","Institutt for lærerutdanning og skoleutvikling","1996 -2010",2010,"SLS","ILS","A - U - F - Fo","Underlagt UV - fakultetet. Institutt for lærerutdanning og skoleutvikling (ILS) skiftet navn til Institutt for lærerutdanning  og skoleforskning  13.04.2010 . Fortsatt blir forkortelsen ILS brukt."]
["I","Institutt for lærerutdanning og skoleforskning",2010,{"$nulls":3},"A - U - F - Fo"]

{"sheet":"Kartlegging","index":1,"n_rows":242,"n_cols":18,"rows_kept":242}
[null,"Kartleggingsskjema, sektorprosjekt, universiteter og vitenskaplige høgskoler"]
[null,"Bevaring og kassasjonskartlegging",{"$nulls":9},"totalt HM"]
[null,2013,{"$nulls":9},{"$f":"SUM(L9:L2184)","v":{"v":18.84,"d":"18.8"}}]
["Enhet","Arkivskjema","Serier","Ordningsprinsipp","Funksjon","Vurdering","År-fra","År-til","HM","Plassering","Kommentar",null,"Saksbehandling","Hva mottar arkivskaper","Hva produserer arkivskaper","Redundans","Oppbevaringsbehov","Kommentar"]
[{"$f":"Organisasjonshistorie!B8","v":"Pedagogisk seminar (PSO)"},"A","Diverse protokoller","Kronologisk","A - U","B",1956,1987,{"v":0.39,"d":"0.4"},"K43","Alt arkivmaterialet"]
[null,"B","Kopibøker","Kronologisk","A - U","B",1926,1987,0.1,"K43","fra PSO ordnet"]
[{"$nulls":10},"etter arkivnøkkel i"]
[{"$nulls":10},"som ble laget i 1974"]
[null,"D","Klasse 0 - 2","Arkivnøkkel","A","F",1907,1987,1.6,"K43","Alt arkivmaterialet"]
[null,"D","Klasse 4  Studie","Arkivnøkkel","A - U","V",1907,1987,0.4,"K43","som er produsert før"]
[null,"D","Klasse 5 Studie","Arkivnøkkel","A - U","V",1907,1987,0.3,"K43","1950 skal avleveres."]
[null,"D","Klasse 6 - Personal","Arkivnøkkel","A ","F",1907,1987,0.5,"K43","i sin opprinnelige stand"]
[null,"D","Klasse 7 -Studentforhold","Arkivnøkkel","A - U","V",1907,1987,0.1,"K43","uten kassasjon"]
[]
[]
[]
[{"$nulls":7},"Totalt",{"$f":"SUM(I5:I16)","v":{"v":3.3899999999999997,"d":"3.4"}},null,null,{"$f":"I17","v":{"v":3.3899999999999997,"d":"3.4"}}]
["Enhet","Arkivskjema","Serier","Ordningsprinsipp","Funksjon","Vurdering","År-fra","År-til","HM","Plassering",null,null,"Saksbehandling","Hva mottar arkivskaper","Hva produserer arkivskaper","Redundans","Oppbevaringsbehov","Kommentar"]
[{"$f":"Organisasjonshistorie!B9","v":"Senter for lærerutdanning og skoletjeneste (SLS)"},"D","Klasse 0 - 2","Arkivnøkkel","A","F",1988,1995,1.7,"K43"]
[null,"D","Klasse 3 - 4 Studie","Arkivnøkkel","A - F - U","V",1988,1995,0.9,"K43","Sammenblanding av "]
[null,"D","Klasse 5  - Studentforhold","Arkivnøkkel","A - F - U","V",1988,1995,2.2,"K43","klasse 3 og 4 i boks 25"]
[{"$nulls":10},"Klasse 5 eske 27 - 48"]
[null,"A","Råd/utvalg","Kronologisk","A - F-U","B",1987,1992,0.1,"K43","Her må det en "]
[null,"B","Kopibøker","Kronologisk","A - F - U","B",1988,1995,{"v":1,"d":"1.0"},"K43","opprydding til"]
[{"$nulls":10},"Blanding av klasse 5 og"]
[{"$nulls":10},"og klasse 3 og noen "]
[{"$nulls":10},"esker uten arkivnøkkel"]
[]
[]
[{"$nulls":7},"Totalt",{"$f":"SUM(I19:I29)","v":5.9},null,null,{"$f":"I30","v":5.9}]
["Enhet","Arkivskjema","Serier","Ordningsprinsipp","Funksjon","Vurdering","År-fra","År-til","HM","Plassering",null,null,"Saksbehandling","Hva mottar arkivskaper","Hva produserer arkivskaper","Redundans","Oppbevaringsbehov","Kommentar"]
[{"$f":"Organisasjonshistorie!B10","v":"Institutt for lærerutdanning og skoleutvikling"},"D","Klasse 0 -2","Arkivnøkkel","A","F",1996,1999,0.8,"K43","Arkivansvar ILS fra "]
[null,"D","Klasse 3 Studie","Arkivnøkkel","A - U","V",1996,1999,1.4,"K43","1.1.1996 - 31.05.1999"]
[null,"D","Klasse 4 Forskn.","Arkivnøkkel","A - F","V",1996,1999,0.5,"K43"]
[null,"D","Klasse 5 Studentforhold","Arkivnøkkel","A - F","V",1996,1999,0.2,"K43","Studie diverse"]
[{"$nulls":10},"Arkivansvaret for ILS"]
[{"$nulls":10},"ble integrert i UV -"]
[{"$nulls":10},"arkivet fra 1.6 -1999"]
[]
[null,"D",{"$nulls":7},"Rom 391","Felles arkiv med UV"]
[{"$nulls":10},"fra 1.6.1999"]
[null,"D","Besøksrapporter","Alfabetisk","A","V",1999,2002,{"v":6,"d":"6.0"},"K43","Praksisrapporter for "]
[null,"B","Kopibøker","Kronologisk","B","B",1999,2008,{"v":0.65,"d":"0.7"},"K43","PPU studenter."]
[{"$nulls":10},"Studentene er pålagt"]
[{"$nulls":10},"8 ukers praksis på "]
[{"$nulls":10},"utvalgte skoler"]
[{"$nulls":7},"Totalt",{"$f":"SUM(I32:I46)","v":{"v":9.55,"d":"9.6"}},null,null,{"$f":"I47","v":{"v":9.55,"d":"9.6"}}]
["Enhet","Arkivskjema","Serier","Ordningsprinsipp","Funksjon","Vurdering","År-fra","År-til","HM","Plassering"]
[{"$f":"Organisasjonshistorie!B11","v":"Institutt for lærerutdanning og skoleforskning"}]
{"$rows_empty":10}
[{"$nulls":7},"Totalt",{"$f":"SUM(I49:I59)","v":{"v":0,"d":"0.0"}},null,null,{"$f":"I60","v":{"v":0,"d":"0.0"}}]
["Enhet","Arkivskjema","Serier","Ordningsprinsipp","Funksjon","Vurdering","År-fra","År-til","HM","Plassering"]
[{"$f":"Organisasjonshistorie!B12","v":0}]
{"$rows_empty":10}
[{"$nulls":7},"Totalt",{"$f":"SUM(I62:I72)","v":{"v":0,"d":"0.0"}},null,null,{"$f":"I73","v":{"v":0,"d":"0.0"}}]
["Enhet","Arkivskjema","Serier","Ordningsprinsipp","Funksjon","Vurdering","År-fra","År-til","HM","Plassering"]
[{"$f":"Organisasjonshistorie!B13","v":0}]
{"$rows_empty":10}
[{"$nulls":7},"Totalt",{"$f":"SUM(I75:I85)","v":{"v":0,"d":"0.0"}},null,null,{"$f":"I86","v":{"v":0,"d":"0.0"}}]
["Enhet","Arkivskjema","Serier","Ordningsprinsipp","Funksjon","Vurdering","År-fra","År-til","HM","Plassering"]
[{"$f":"Organisasjonshistorie!B14","v":0}]
{"$rows_empty":10}
[{"$nulls":7},"Totalt",{"$f":"SUM(I88:I98)","v":{"v":0,"d":"0.0"}},null,null,{"$f":"I99","v":{"v":0,"d":"0.0"}}]
["Enhet","Arkivskjema","Serier","Ordningsprinsipp","Funksjon","Vurdering","År-fra","År-til","HM","Plassering"]
[{"$f":"Organisasjonshistorie!B15","v":0}]
{"$rows_empty":10}
[{"$nulls":7},"Totalt",{"$f":"SUM(I101:I111)","v":{"v":0,"d":"0.0"}},null,null,{"$f":"I112","v":{"v":0,"d":"0.0"}}]
["Enhet","Arkivskjema","Serier","Ordningsprinsipp","Funksjon","Vurdering","År-fra","År-til","HM","Plassering"]
[{"$f":"Organisasjonshistorie!B16","v":0}]
{"$rows_empty":10}
[{"$nulls":7},"Totalt",{"$f":"SUM(I114:I124)","v":{"v":0,"d":"0.0"}},null,null,{"$f":"I125","v":{"v":0,"d":"0.0"}}]
["Enhet","Arkivskjema","Serier","Ordningsprinsipp","Funksjon","Vurdering","År-fra","År-til","HM","Plassering"]
[{"$f":"Organisasjonshistorie!B17","v":0}]
{"$rows_empty":10}
[{"$nulls":7},"Totalt",{"$f":"SUM(I127:I137)","v":{"v":0,"d":"0.0"}},null,null,{"$f":"I138","v":{"v":0,"d":"0.0"}}]
["Enhet","Arkivskjema","Serier","Ordningsprinsipp","Funksjon","Vurdering","År-fra","År-til","HM","Plassering"]
[{"$f":"Organisasjonshistorie!B18","v":0}]
{"$rows_empty":10}
[{"$nulls":7},"Totalt",{"$f":"SUM(I140:I150)","v":{"v":0,"d":"0.0"}},null,null,{"$f":"I151","v":{"v":0,"d":"0.0"}}]
["Enhet","Arkivskjema","Serier","Ordningsprinsipp","Funksjon","Vurdering","År-fra","År-til","HM","Plassering"]
[{"$f":"Organisasjonshistorie!B19","v":0}]
{"$rows_empty":10}
[{"$nulls":7},"Totalt",{"$f":"SUM(I153:I163)","v":{"v":0,"d":"0.0"}},null,null,{"$f":"I164","v":{"v":0,"d":"0.0"}}]
["Enhet","Arkivskjema","Serier","Ordningsprinsipp","Funksjon","Vurdering","År-fra","År-til","HM","Plassering"]
[{"$f":"Organisasjonshistorie!B20","v":0}]
{"$rows_empty":10}
[{"$nulls":7},"Totalt",{"$f":"SUM(I166:I176)","v":{"v":0,"d":"0.0"}},null,null,{"$f":"I177","v":{"v":0,"d":"0.0"}}]
["Enhet","Arkivskjema","Serier","Ordningsprinsipp","Funksjon","Vurdering","År-fra","År-til","HM","Plassering"]
[{"$f":"Organisasjonshistorie!B21","v":0}]
{"$rows_empty":10}
[{"$nulls":7},"Totalt",{"$f":"SUM(I179:I189)","v":{"v":0,"d":"0.0"}},null,null,{"$f":"I190","v":{"v":0,"d":"0.0"}}]
["Enhet","Arkivskjema","Serier","Ordningsprinsipp","Funksjon","Vurdering","År-fra","År-til","HM","Plassering"]
[{"$f":"Organisasjonshistorie!B22","v":0}]
{"$rows_empty":10}
[{"$nulls":7},"Totalt",{"$f":"SUM(I192:I202)","v":{"v":0,"d":"0.0"}},null,null,{"$f":"I203","v":{"v":0,"d":"0.0"}}]
["Enhet","Arkivskjema","Serier","Ordningsprinsipp","Funksjon","Vurdering","År-fra","År-til","HM","Plassering"]
[{"$f":"Organisasjonshistorie!B23","v":0}]
{"$rows_empty":10}
[{"$nulls":7},"Totalt",{"$f":"SUM(I205:I215)","v":{"v":0,"d":"0.0"}},null,null,{"$f":"I216","v":{"v":0,"d":"0.0"}}]
["Enhet","Arkivskjema","Serier","Ordningsprinsipp","Funksjon","Vurdering","År-fra","År-til","HM","Plassering"]
[{"$f":"Organisasjonshistorie!B24","v":0}]
{"$rows_empty":10}
[{"$nulls":7},"Totalt",{"$f":"SUM(I218:I228)","v":{"v":0,"d":"0.0"}},null,null,{"$f":"I229","v":{"v":0,"d":"0.0"}}]
["Enhet","Arkivskjema","Serier","Ordningsprinsipp","Funksjon","Vurdering","År-fra","År-til","HM","Plassering"]
[{"$f":"Organisasjonshistorie!B25","v":0}]
{"$rows_empty":10}
[{"$nulls":7},"Totalt",{"$f":"SUM(I231:I241)","v":{"v":0,"d":"0.0"}},null,null,{"$f":"I242","v":{"v":0,"d":"0.0"}}]

{"sheet":"Allment arkivskjema","index":2,"n_rows":19,"n_cols":2,"rows_kept":19}
["Allment arkivskjema"]
[]
["A","Møteboker, referatprotokoller, forhandlingsprotokoller og lignende"]
["B","Kopibøker"]
["C","Journaler og andre overgripende registre"]
["D","Saks- og korrespondansearkiv etter organets hovedsystem"]
["E","Saks- og korrespondansearkiv ordnet etter eventuelle andre, sideordnede system"]
["F - O","Spesialserier innenfor hver enkelt arkivskapers fagområde"]
["P","Personalforvaltning"]
["Q","Eiendomsforvaltning"]
["R","Regnskap"]
["S","Statistikk"]
["T","Kart og tegninger"]
["U","Foto, film og lydopptak"]
["V","EDB og mikrofilm"]
["W","Gjenstander"]
["X","Egenproduserte trykksaker"]
["Y","Andre utskilte arkivdeler, diverse"]
["Z","Referansemateriell"]

{"sheet":"Rapport","index":3,"n_rows":1,"n_cols":1,"rows_kept":1}
["asta1995"]